Cogmind - Beta 15 --- EXPLORER MODE // 2025.09.20 @ 13:29:43 // Winter2019/RPGLIKE Player: RR-3MY Result: Self-destructed Performance ------------- Evolutions (5) 2500 Regions Visited (4) 800 Robots Destroyed (20) 100 Value Destroyed (418) 418 Prototype IDs (13) 260 Alien Tech Used (0) 0 Bonus (0) 0 TOTAL SCORE: 4078 Bonus ------- None Cogmind --------- Core Integrity 648/800 Matter 213/300 Energy 100/100 System Corruption 0% Temperature Cool (0) Movement Walking (130) Location -5/Factory Parts ------- > --- POWER (2) -------- Subdweller Power Source > --- PROPULSION (4) --- Carbon-fiber Leg Titanium Leg Cargo Legs > --- UTILITY (6+2) ---- Signal Interpreter Improved Terrain Scanner Seismic Detector Scrap Shield Improved Shield Generator > --- WEAPON (3) ------- Subdweller Beam Cannon Subdweller Machine Gun Gauss Cannon > --- INVENTORY (5) ---- Transmission Jammer Hardened Heavy Armor Plating Remote Datajack Peak State ------------ > --- POWER ------------ Subdweller Power Source > --- PROPULSION ------- Carbon-fiber Leg Titanium Leg Cargo Legs > --- UTILITY ---------- Signal Interpreter Improved Terrain Scanner Seismic Detector Scrap Shield Improved Shield Generator > --- WEAPON ----------- Subdweller Beam Cannon Subdweller Machine Gun Gauss Cannon > --- INVENTORY -------- Transmission Jammer Hardened Heavy Armor Plating Remote Datajack [Rating: 46] Favorites ----------- Power Subdweller Power Source Engine Subdweller Power Source Propulsion Light Treads Treads Light Treads Leg Cargo Legs Utility Signal Interpreter Device Improved Terrain Scanner Processor Signal Interpreter Protection Scrap Shield Weapon Subdweller Beam Cannon Energy Gun Small Laser Energy Cannon Subdweller Beam Cannon Ballistic Gun Assault Rifle Ballistic Cannon Gauss Cannon Build | -11 -10 -10 -7 -5 ------- Run | Yrd Mat Sub Rec Fac Slots Evolved 11 | 6 . 1 4 . Power 1 | . . . 1 . Propulsion 3 | 2 . . 1 . Utility 5 | 3 . 1 1 . Weapon 2 | 1 . . 1 . Parts Attached 22 | 10 1 6 5 . Power 3 | 1 1 1 . . Engine 3 | 1 1 1 . . Core . | . . . . . Reactor . | . . . . . Propulsion 6 | 2 . 2 2 . Treads 3 | 2 . 1 . . Leg 3 | . . 1 2 . Wheel . | . . . . . Hover . | . . . . . Flight . | . . . . . Utility 7 | 5 . 1 1 . Device 3 | 2 . . 1 . Storage . | . . . . . Processor 1 | 1 . . . . Hackware . | . . . . . Protection 3 | 2 . 1 . . Artifact . | . . . . . Weapon 6 | 2 . 2 2 . Energy Gun 1 | 1 . . . . Energy Cannon 1 | . . 1 . . Ballistic Gun 2 | 1 . . 1 . Ballistic Cannon 2 | . . 1 1 . Launcher . | . . . . . Special Weapon . | . . . . . Impact Weapon . | . . . . . Slashing Weapon . | . . . . . Piercing Weapon . | . . . . . Special Melee Weapon . | . . . . . Unidentified Prototypes . | . . . . . Parts Lost 1 | . 1 . . . Power 1 | . 1 . . . Propulsion . | . . . . . Utility . | . . . . . Weapon . | . . . . . Highest Loss Streak 1 | . 1 . . . To Critical Strikes . | . . . . . Average Backups 1 | . . . 3 3 Power . | . . . . . Propulsion . | . . . . . Utility . | . . . 1 2 Weapon . | . . . . . Tool/Special . | . . . . . Unused Backups 3 | . . . . 3 Power . | . . . . . Propulsion . | . . . . . Utility 2 | . . . . 2 Weapon . | . . . . . Tool/Special 1 | . . . . 1 Average Slot Usage (%) 72 | . 87 69 65 70 Engine 6 | . 7 5 5 5 Treads 8 | . 20 9 . . Leg 7 | . . 3 16 17 Device 17 | . 20 16 16 17 Processor 7 | . 10 8 5 5 Protection 7 | . 10 7 5 5 Energy Gun 3 | . 10 2 . . Energy Cannon 4 | . . 5 5 5 Ballistic Gun 3 | . 10 2 . 5 Ballistic Cannon 4 | . . 5 5 5 Peak Build Rating 46 | 11 11 35 46 46 Average Rating 27 | 8 10 24 42 46 On Entrance 20 | . 11 10 33 46 Naked Turns . | . . . . . Heaviest Build 48 | 9 11 40 48 48 Greatest Support 87 | 40 40 60 87 55 Greatest Overweight (x) 1 | . . 1 . . Average Overweight (x) . | . . . . . Largest Inventory Capacity 5 | 3 3 3 5 5 Average Capacity 3 | 2 3 3 4 5 Most Carried 5 | . 1 3 5 4 Average Carried 2 | . . 2 4 4 Final Capacity 5 | 3 3 3 5 5 Final Carried 4 | . . 3 4 4 Class Distribution -------------------- 100% | Hacker-Mutant Dominant Class ---------------- Hacker-Mutant | -10/Materials Hacker-Mutant | -10/Subcaves Hacker-Mutant | -7/Recycling Hacker-Mutant | -5/Factory Resources | -11 -10 -10 -7 -5 ----------- Run | Yrd Mat Sub Rec Fac Matter Collected 577 | 327 55 138 57 . Remotely . | . . . . . Salvage Created 572 | 106 303 9 154 . Parts 38 | 7 21 5 5 . Haulers Intercepted 1 | . 1 . . . Recyclers Shooed 3 | . . . 3 . Parts Field Recycled . | . . . . . Retrieved Matter . | . . . . . Parts Self-Destructed . | . . . . . Prevented . | . . . . . Kills | -11 -10 -10 -7 -5 ------- Run | Yrd Mat Sub Rec Fac Combat Hostiles Destroyed 13 | . 6 5 2 . Guns 8 | . 6 1 1 . Cannons 5 | . . 4 1 . Classes Destroyed 9 | 2 4 1 2 . Builder 2 | . . . 2 . Tunneler 2 | 2 . . . . Hauler 1 | . 1 . . . Recycler 1 | 1 . . . . Watcher 1 | . 1 . . . Swarmer 6 | . 2 4 . . Grunt 4 | . 4 . . . Sentry 2 | . . . 2 . Subdweller 1 | . . 1 . . Best Kill Streak 4 | 1 3 4 2 . Combat Bots Only 4 | . 2 4 1 . Max Kills in Single Turn 1 | 1 1 1 1 . Gunslinging . | . . . . . Exploded . | . . . . . Melee . | . . . . . Uniques/NPCs Destroyed . | . . . . . Combat | -11 -10 -10 -7 -5 -------- Run | Yrd Mat Sub Rec Fac Hostile Shots Fired 186 | . 32 76 72 6 Missed 81 | . 9 38 33 1 Hits 105 | . 23 38 39 5 Projectile 105 | . 23 38 39 5 Damage Taken 630 | . 223 190 166 51 Core 403 | . 178 120 83 22 Absorbed by Shields . | . . . . . Redirected to Core 293 | . 109 88 74 22 Redirected to Shielding 4 | . 4 . . . Ignored by Resistances 434 | . 138 134 125 37 Core Remaining (%) 91 | 100 . . 83 . Volleys Fired 67 | 9 20 19 16 3 Largest 2 | 2 2 2 2 2 Hottest 120 | 60 60 120 120 70 Shots Fired 116 | 18 40 26 26 6 Gun 69 | 18 40 6 2 3 Cannon 47 | . . 20 24 3 Launcher . | . . . . . Special . | . . . . . Kinetic 60 | 9 20 12 13 6 Thermal 56 | 9 20 14 13 . Explosive . | . . . . . Electromagnetic . | . . . . . Robot Hit Streak 20 | 16 17 20 11 12 Robot Miss Streak 2 | 1 1 1 2 1 Penetration Max . | . . . . . Secondary Targets 1 | . 1 . . . Max Gunslinging Chain 1 | . 1 . . . Shots Hit Robots 77 | 16 26 12 18 5 Core Hits 33 | 4 15 6 6 2 Critical Kills 1 | . . 1 . . Critical Parts Destroyed . | . . . . . Critical Strikes 4 | . . 1 3 . Destroy 1 | . . 1 . . Blast 3 | . . . 3 . Melee Attacks . | . . . . . Impact . | . . . . . Slashing . | . . . . . Piercing . | . . . . . Sneak Attacks . | . . . . . Combat Hostiles . | . . . . . Follow-up Attacks . | . . . . . Damage Inflicted 1384 | 188 310 280 511 95 Guns 650 | 188 310 58 41 53 Cannons 734 | . . 222 470 42 Explosions . | . . . . . Melee . | . . . . . Ramming . | . . . . . Kinetic 743 | 93 134 137 284 95 Thermal 641 | 95 176 143 227 . Explosive . | . . . . . Electromagnetic . | . . . . . Impact . | . . . . . Slashing . | . . . . . Piercing . | . . . . . Highest Corruption . | . . . . . Average Corruption . | . . . . . Corruption Purged . | . . . . . Corruption Blocked . | . . . . . Overload Shots . | . . . . . Overflow Damage 18 | . . 10 8 . Projectiles 18 | . . 10 8 . Explosions . | . . . . . Melee . | . . . . . Knockbacks 3 | . . . 3 . Impact . | . . . . . Kinetic 2 | . . . 2 . Secondary 1 | . . . 1 . Self-Inflicted Damage . | . . . . . Shots . | . . . . . Rammed . | . . . . . Targets Rammed . | . . . . . Kicked . | . . . . . Crushed . | . . . . . Highest Temperature 222 | . 60 . 222 . Average Temperature 58 | . 27 . 69 . Received Heat Transfer 393 | . 123 180 90 . Effects 1 | . . . 1 . Energy Bleed 1 | . . . 1 . Siege Activations . | . . . . . Martial Activations . | . . . . . Shielding Activations . | . . . . . Robots Disrupted . | . . . . . Combat Hostiles . | . . . . . Robots Corrupted . | . . . . . Combat Hostiles . | . . . . . Parts Fried . | . . . . . Impact Corruptions . | . . . . . Robots Melted . | . . . . . Combat Hostiles . | . . . . . Parts Melted 1 | . 1 . . . Heat Transferred 1144 | 225 400 223 296 . Parts Sabotaged . | . . . . . Parts Stolen . | . . . . . Parts Stripped . | . . . . . Power Chain Reactions . | . . . . . Alert | -11 -10 -10 -7 -5 ------- Run | Yrd Mat Sub Rec Fac Maximum Alert Level 1 | . . . . 1 Low Security (%) 97 | 100 100 . 100 . Level 1 2 | . . . . 100 Level 2 . | . . . . . Level 3 . | . . . . . Level 4 . | . . . . . Level 5 . | . . . . . High Security . | . . . . . Max Security . | . . . . . Peak Influence 350 | 5 50 . 30 350 Initial 350 | . . . 22 350 Average 13 | 1 6 . 5 336 Influence Increases 948 | 15 194 110 279 350 Destroy 0b10 Robot/C 240 | . 120 80 40 . Destroy 0b10 Robot/NC 35 | 15 10 . 10 . Destroy Leader 34 | . 34 . . . Successful Hack 26 | . 15 . 11 . Select Force Hacks 210 | . . . 210 . Destroy Structure 8 | . . . 8 . Advance Influence 350 | . . . . 350 Partial Spotted 15 | . 15 . . . Lose Combat Pursuer 30 | . . 30 . . Influence Decreases 628 | 15 194 45 344 30 Entered New Map 43 | . . . 43 . Time Decay 560 | 15 184 45 286 30 Lost Part 10 | . 10 . . . Purge Threat 15 | . . . 15 . Squads Dispatched 1 | . . . . 1 Investigation . | . . . . . Extermination . | . . . . . Reinforcement 1 | . . . . 1 Assault . | . . . . . Garrison . | . . . . . Intercept . | . . . . . Searches Triggered . | . . . . . Construction Impeded . | . . . . . Haulers Reinforced . | . . . . . Active Scanning Responses . | . . . . . Cargo Convoy Interrupts . | . . . . . Stealth | -11 -10 -10 -7 -5 --------- Run | Yrd Mat Sub Rec Fac Distress Signals . | . . . . . Communications Jammed . | . . . . . Distress Signals . | . . . . . Times Spotted 25 | . 11 9 2 3 Peak Tracking Total 6 | . 3 6 1 1 Tactical Retreats 1 | . . 1 . . Traps | -11 -10 -10 -7 -5 ------- Run | Yrd Mat Sub Rec Fac Traps Triggered . | . . . . . Indirectly . | . . . . . Trap Hack Attempts . | . . . . . Triggered . | . . . . . Disarmed . | . . . . . Reprogrammed . | . . . . . Reused . | . . . . . Traps Extracted . | . . . . . Installed . | . . . . . Triggered . | . . . . . Machines | -11 -10 -10 -7 -5 ---------- Run | Yrd Mat Sub Rec Fac Machines Disabled 1 | . . 1 . . Max in Single Turn 1 | . . 1 . . Machines Repaired . | . . . . . Machines Dismantled . | . . . . . Machines Sabotaged . | . . . . . Overloaded Fab Kills . | . . . . . Hacking | -11 -10 -10 -7 -5 --------- Run | Yrd Mat Sub Rec Fac Machines Accessed 19 | . 5 1 13 . Terminals 11 | . 5 . 6 . Fabricators . | . . . . . Repair Stations . | . . . . . Recycling Units 7 | . . . 7 . Scanalyzers . | . . . . . Garrison Access . | . . . . . Total Hacks 52 | . 13 1 38 . Successful 41 | . 6 1 34 . Failed 11 | . 7 . 4 . Catastrophic 1 | . 1 . . . Database Lockouts . | . . . . . Manual 20 | . 4 . 16 . Terminals 34 | . 13 . 21 . Fabricators . | . . . . . Repair Stations . | . . . . . Recycling Units 17 | . . . 17 . Scanalyzers . | . . . . . Garrison Access . | . . . . . Terminal Hacks 21 | . 5 1 15 . Record 1 | . . . 1 . Robot Schematic 1 | . . . 1 . Robot Analysis 5 | . 1 . 4 . Prototype ID Bank 1 | . 1 . . . Branch Access Points 1 | . 1 . . . Emergency Access Points 1 | . 1 . . . Terminal Index 1 | . . . 1 . Recycling Unit Index 1 | . . . 1 . Garrison Index 1 | . . . 1 . Alert Level 2 | . . . 2 . Unreport Threat 1 | . . . 1 . Locate Traps 1 | . 1 . . . Dispatch Records 1 | . . . 1 . Patrol Status 1 | . . . 1 . Zone Layout 1 | . . . 1 . Proto ID Catalog 1 | . . 1 . . Fabricator Hacks . | . . . . . Repair Station Hacks . | . . . . . Recycling Unit Hacks 10 | . . . 10 . Report Inventory 8 | . . . 8 . Retrieve Components 2 | . . . 2 . Scanalyzer . | . . . . . Garrison Access Hacks . | . . . . . Unauthorized Hacks 10 | . 1 . 9 . Terminals 3 | . 1 . 2 . Botnet 2 | . 1 . 1 . Operators 1 | . . . 1 . Fabricators . | . . . . . Repair Stations . | . . . . . Recycling Units 7 | . . . 7 . Tunnel 7 | . . . 7 . Scanalyzers . | . . . . . Garrison Access . | . . . . . Data Cores Recovered . | . . . . . Used . | . . . . . Hacking Detections 11 | . 5 . 6 . Full Trace Events 1 | . 1 . . . Feedback Events . | . . . . . Feedback Blocked . | . . . . . Robot Schematics Acquired 1 | . . . 1 . Robots Built . | . . . . . Authchips . | . . . . . Time . | . . . . . Total Robot Build Rating . | . . . . . Part Schematics Acquired . | . . . . . Parts Built . | . . . . . Authchips . | . . . . . Time . | . . . . . Total Part Build Rating . | . . . . . Parts Repaired . | . . . . . Time . | . . . . . Parts Recycled . | . . . . . Recycled Matter . | . . . . . Retrieved Matter . | . . . . . Retrieved Components 5 | . . . 5 . Parts Scanalyzed . | . . . . . Part Schematics Acquired . | . . . . . Parts Damaged . | . . . . . Bothacking | -11 -10 -10 -7 -5 ------------ Run | Yrd Mat Sub Rec Fac Used RIF Installer . | . . . . . Robots Hacked . | . . . . . Non-combat . | . . . . . Combat . | . . . . . Robot Hacks Applied . | . . . . . Relay Couplers Released . | . . . . . Fabnet Peak Effective % . | . . . . . Robots Rewired . | . . . . . Allies Hacked . | . . . . . Hacks Repelled . | . . . . . Allies | -11 -10 -10 -7 -5 -------- Run | Yrd Mat Sub Rec Fac Total Allies . | . . . . . Largest Group . | . . . . . Highest-Rated Group . | . . . . . Highest-Rated Ally . | . . . . . Total Orders . | . . . . . Ally Attacks . | . . . . . Total Damage . | . . . . . Kills . | . . . . . Allies Corrupted . | . . . . . Allies Melted . | . . . . . Intel | -11 -10 -10 -7 -5 ------- Run | Yrd Mat Sub Rec Fac Active Infowar (turns) 2206 | 76 727 906 497 . Terrain 1625 | 76 671 381 497 . Seismic 2021 | 58 727 890 346 . Robot Analysis Total 5 | . 1 . 4 . Derelict Logs Recovered 3 | . . 3 . . Drone Launches . | . . . . . Drone Recoveries . | . . . . . Exploration | -11 -10 -10 -7 -5 ------------- Run | Yrd Mat Sub Rec Fac Turns Passed 2960 | 184 727 906 1091 52 Spaces Moved 1846 | 89 404 547 773 33 Core 2 | 2 . . . . Treads 717 | 87 404 226 . . Legs 1127 | . . 321 773 33 Wheels . | . . . . . Hover . | . . . . . Flight . | . . . . . Fastest Speed 50 | 50 160 130 125 130 Average Speed 141 | 157 160 142 129 130 Slowest Speed 260 | 160 160 260 130 130 Overloaded Moves . | . . . . . Propulsion Burnouts . | . . . . . Robots Hopped . | . . . . . Potential Cave-ins . | . . . . . Cave-ins Triggered . | . . . . . Exploration Rate (%) 37 | 5 59 29 95 1 Regions Visited 4 Branch Regions 2 Pre-discovered Areas 8 | . . 1 7 . Known Exits Taken 4 | 1 1 1 1 . Unknown Exits Taken . | . . . . . Scrap Searched 5 | . . 5 . . Spaces Dug 6 | . . 2 4 . Terrain Destroyed 14 | . . 4 9 1 Melee . | . . . . . Projectile 14 | . . 4 9 1 AOE . | . . . . . Terrain Rammed . | . . . . . Walls Destroyed . | . . . . . Machines Disabled . | . . . . . Actions | -11 -10 -10 -7 -5 --------- Run | Yrd Mat Sub Rec Fac Total 2075 | 110 445 646 838 36 Wait 109 | 2 14 56 37 . Move 1842 | 88 403 546 772 33 Hop . | . . . . . Pick Up 6 | . . 3 3 . Fast Attach 20 | 10 . 6 4 . Attach 1 | . . . 1 . Detach . | . . . . . Swap 1 | . 1 . . . Drop 11 | 1 1 6 3 . Fire 67 | 9 20 19 16 3 Melee . | . . . . . Ram . | . . . . . Kick . | . . . . . Crush . | . . . . . Escape Stasis . | . . . . . Rewire . | . . . . . Trap . | . . . . . Miscellaneous 18 | . 6 10 2 . Route ------- -11/Scrapyard -10/Materials (discovered 3 exits: *Mat / *Min / *Sub) -10/Subcaves -7/Recycling (discovered 2 exits: *Fac / *Scr) -5/Factory History --------- Turn | Location | Event 2 | -11/Scrapyard | Met Revision 17 2 | -11/Scrapyard | Upgraded with Propulsion slot (x2) 2 | -11/Scrapyard | Upgraded with Utility slot (x3) 2 | -11/Scrapyard | Upgraded with Weapon slot (x1) 10 | -11/Scrapyard | Identified exit to Materials 10 | -11/Scrapyard | Discovered exit to Materials (range 16) 185 | -11/Scrapyard | Entered Materials 240 | -10/Materials | Identified exit to Mines 300 | -10/Materials | Build established: Hacker-Mutant 536 | -10/Materials | Identified exit to Materials 536 | -10/Materials | Discovered exit to Materials (range 15) 898 | -10/Materials | Identified exit to Subcaves 898 | -10/Materials | Discovered exit to Subcaves (range 10) 912 | -10/Materials | Entered Subcaves 914 | -10/Subcaves | Reached level 2 954 | -10/Subcaves | Upgraded with Utility slot (x1) 1077 | -10/Subcaves | Learned location of Zion (-7) 1306 | -10/Subcaves | Visited 4L-MR0's lab 1331 | -10/Subcaves | Found Cargo Legs 1333 | -10/Subcaves | Attached Cargo Legs, gained temporary slots: Utility x2 1647 | -10/Subcaves | Shifting Twisted Machinery released Sub. Power Source 1650 | -10/Subcaves | Shifting Twisted Machinery released Sub. Machine Gun 1683 | -10/Subcaves | Learned Materials machine intel 1758 | -10/Subcaves | Identified exit to Recycling 1758 | -10/Subcaves | Discovered exit to Recycling (range 12) 1818 | -10/Subcaves | Entered Recycling 1820 | -7/Recycling | Reached level 3 1820 | -7/Recycling | Reached level 4 1820 | -7/Recycling | Reached level 5 1820 | -7/Recycling | Reached level 6 1820 | -7/Recycling | Reached level 7 1822 | -7/Recycling | Upgraded with Power slot (x1) 1822 | -7/Recycling | Upgraded with Propulsion slot (x1) 1822 | -7/Recycling | Upgraded with Utility slot (x1) 1859 | -7/Recycling | Reached level 8 2247 | -7/Recycling | Identified exit to Factory 2247 | -7/Recycling | Discovered exit to Factory (range 15) 2541 | -7/Recycling | Reached level 9 2550 | -7/Recycling | Upgraded with Weapon slot (x1) 2808 | -7/Recycling | Scanned before Scraplab entrance 2826 | -7/Recycling | Entered Scraplab 2836 | -7/Recycling | Identified exit to Scraptown 2836 | -7/Recycling | Discovered exit to Scraptown (range 3) 2909 | -7/Recycling | Entered Factory 2911 | -5/Factory | Reached level 10 2911 | -5/Factory | Reached level 11 2911 | -5/Factory | Reached level 12 2911 | -5/Factory | Reached level 13 2911 | -5/Factory | Reached level 14 2911 | -5/Factory | Reached level 15 2961 | -5/Factory | Self-destructed Last Messages --------------- 02864_ The floor rises up to form a wall. LOCATION=FACTORY GOAL=ESCAPE 02911_ Reached level 10. 02911_ Reached level 11. 02911_ Reached level 12. 02911_ Reached level 13. 02911_ Reached level 14. 02911_ Reached level 15. 02917_ O-24 Administrator: "IFF HANDSHAKE FAILED. SECURING TERMINAL." 02917_ Slug penetrates Wall. 02917_ ALERT: All DSF locations entering lockdown mode. 02921_ O-24 Administrator uses terminal to summon reinforcements. 02921_ ALERT: Hostiles spotted, dispatching reinforcements to Terminal F010. 02921_ O-24 Administrator locks terminal. 02956_ Penetrated by Slug. Map ----- +----------------------------------------------------+ | ????????????????????????" " " "????????????? | | ????????????????????? "?" " " "?" ?????????? | | ????????????????????# " " " " " " #????????? | | ????????????????????# " " " " " " #????????? | | ????????????????????# " " " " " " #????????? | | ????????????????????# " " " " " " #????????? | | ????????????????????# " " " " " " #????????? | | ????????????????????# " " " " " " #????????? | | ????????????????????# #????????? | | ????????????????????#####+#+#######????????? | | ????????????????????????# ##########???? | | ????????????????????????# # ????? | | ????????????????????????# # """ ""????? | | ????????????????????????# o """ ""????? | | ????????????????????????# # """ ??? | | ????????????????????????# # ??? | | ????????????????????????# ###########??? | | ????????????????????????# #??????????? | | ????????????????######### #??????????? | | ????????????????# + #??????????? | | ????????????????# # #??????????? | | ????????????????# # m #??????????? | | ????????????????# # ###??????????? | | ????????????????# # #????????????? | | ????????????????# # #????????????? | | ????????????????#[ /@ +????????????? | | ????????????????# # #????????????? | | ????????????????# # #????????????? | | ????????????????# *%# #????????????? | | ????????????????# /=# #????????????? | | ????????????????#########h #????????????? | | ???????????????????????? h % #????????????? | | ???????????????????????? #????????????? | | ???????????????????????? ????????????? | | ???????????????????????? ##???????????? | | ???????????????????????? #????????????? | | ????????????????????????# #????????????? | | ????????????????????????? #????????????? | | ????????????????????????? #????????????? | | ????????????????????????? ?????????????? | | ????????????????????????? ???????????????? | | ???????????????????????????????????????????? | | ???????????????????????????????????????????? | | ???????????????????????????????????????????? | | ???????????????????????????????????????????? | | ???????????????????????????????????????????? | | ???????????????????????????????????????????? | | ???????????????????????????????????????????? | | ???????????????????????????????????????????? | | ???????????????????????????????????????????? | +----------------------------------------------------+ Best States ------------- Heat Dissipation 25 Energy Generation 15 Energy Capacity 250 Matter Stores 300 Matter Capacity 300 Sight Range 16 Terrain Scan Range 16 Terrain Scan Density 410 Armor Coverage 800 Resistance: KI 40 Resistance: TH 40 Resistance: EX 40 Resistance: EM 35 Resistance: I 35 Resistance: S 35 Resistance: P 35 Utility Shielding 33 Weapon Shielding 33 Evasion (%) 55 Recoil Reduction 3 Offensive Hacking 40 Defensive Hacking 10 Item Schematics ----------------- None Robot Schematics ------------------ B-36 Bruiser | -7/Recycling | Hacked Fabricated ------------ Nothing Repaired ---------- Nothing Alien Tech Used ----------------- None Achievements -------------- None Challenges ------------ None RPGLIKE | -11 -10 -10 -7 -5 --------- Run | Yrd Mat Sub Rec Fac Levels Raised 14 | . . 1 7 6 XP Earned 27903 | 6000 800 1400 10305 9398 XP Spent 17200 | 5760 . 1670 9770 . Upgrades 33 | 11 . 4 18 . Power Slot 1 | . . . 1 . Propulsion Slot 3 | 2 . . 1 . Utility Slot 5 | 3 . 1 1 . Weapon Slot 2 | 1 . . 1 . Core Integrity 4 | 2 . . 2 . Inventory Capacity 5 | 3 . . 2 . Terrain Scan Density 4 | . . 3 1 . Hack Attack % 4 | . . . 4 . Hack Defense % 2 | . . . 2 . KI Resistance % 1 | . . . 1 . TH Resistance % 1 | . . . 1 . EX Resistance % 1 | . . . 1 . Protomatter Created 120 | . 48 72 . . Integrity Restored 325 | . 117 208 . . Core 251 | . 117 134 . . Parts 74 | . . 74 . . Protomatter Decayed 68 | . . 68 . . Game ------ Seed PiercingLinkedFlamer Manual? 0 Play Time 00:31:14 Cumulative 36.2 hours Start 2025.09.20 @ 12:57:23 End 2025.09.20 @ 13:29:43 Sessions 1 Manual Loads 0 Difficulty Explorer Special Mode Winter2019/RPGLIKE Game No. 9 Rogue 0 Adventurer 3 Explorer 6 Win Type - Total 5 Types 2/0/1/1/0/0/0/0/0/1 Lore% 38 Gallery% 27 Achievement% 38 Wizard Run 0 Options --------- Layout 2 ASCII 0 Keyboard 0 Movement Mouse Keybinds 0 Fullscreen 1 Font 24/Smallcaps Map View 50x44 Zoom Use 0% Tactical HUD 1 Map Filters NONE Filters NONE Steam 1 RUN: edf63083-31f3-4e5b-8c25-0d3f09214202